bitfinex-derivatives/quotes_SOLF0:USTF0_20250301
["timestamp","ask_amount","ask_price","bid_price","bid_amount"]
[1740840027346,1.28769952,140.16,140.07,9.1245]
[1740840027851,7.1402,140.11,140.07,9.1245]
[1740840028055,7.1402,140.11,140.08,7.1413]
[1740840028355,0.04701446,140.1,140.08,0.04983851]
[1740840028651,7.18741446,140.1,140.08,0.04983851]
[1740840028947,0.04701446,140.1,140.08,0.04983851]
[1740840029753,7.1409,140.09,140.08,0.04983851]
[1740840030346,0.04701446,140.1,140.08,0.04983851]
[1740840030653,7.18761446,140.1,140.08,0.04983851]
[1740840031037,0.04701446,140.1,140.08,0.04983851]
[1740840032650,0.04701446,140.1,140.08,7.19123851]
[1740840033651,0.04701446,140.1,140.09,7.1409]
[1740840035254,10.62,140.16,140.08,0.04983851]
[1740840035553,228.42,140.18,140.08,10.62]
[1740840035754,118.90501036,140.25,140.2,7.135]
[1740840035954,118.90501036,140.25,140.15,10.62]
[1740840036257,118.90501036,140.25,140.16,3.8682]
[1740840036458,118.90501036,140.25,140.21,7.1344]
[1740840037359,118.90501036,140.25,140.19,0.04659573]
[1740840037563,118.90501036,140.25,140.22,7.1342]
[1740840037751,118.90501036,140.25,140.16,172.27750667]
[1740840037956,118.90501036,140.25,140.22,0.05273253]
[1740840038258,118.90501036,140.25,140.22,0.0455565]
[1740840038762,17.7519,140.27,140.22,0.0455565]
[1740840039061,118.90501036,140.38,140.22,0.0455565]
[1740840039260,1.28633954,140.31,140.26,7.1319]
[1740840039458,235.6494,140.32,140.26,7.1835737]
[1740840041160,235.6496,140.32,140.26,7.1835737]
[1740840042264,228.52,140.32,140.26,7.1835737]
[1740840042461,7.1297,140.31,140.26,7.1835737]
[1740840043158,228.52,140.32,140.26,7.1835737]
[1740840043159,235.6494,140.32,140.26,7.1835737]
[1740840043359,228.52,140.32,140.26,0.0516737]
[1740840043558,228.52,140.32,140.28,7.1312]
[1740840044367,235.6495,140.32,140.27,7.1316]
[1740840044957,7.1303,140.3,140.26,7.1837737]
[1740840045258,7.1303,140.3,140.26,0.0516737]
[1740840045861,7.1308,140.29,140.26,0.0516737]
[1740840046169,228.52,140.32,140.26,7.1839737]
[1740840046567,7.1304,140.3,140.26,7.1839737]
[1740840047862,228.52,140.32,140.26,0.0516737]
[1740840048651,7.1318,140.27,140.26,0.0516737]
[1740840055672,10.6,140.29,140.26,0.0516737]
[1740840055970,17.7311,140.29,140.26,0.0516737]
[1740840056366,7.1305,140.3,140.27,7.1314]
[1740840057272,7.1309,140.29,140.26,7.1836737]
[1740840058778,7.1313,140.28,140.26,0.0516737]
[1740840059672,239.12,140.32,140.26,0.0516737]
[1740840059868,7.1318,140.27,140.26,0.0516737]
[1740840060267,7.131,140.29,140.26,0.0516737]
[1740840060473,239.12,140.32,140.26,0.0516737]
[1740840061181,7.1305,140.3,140.27,7.1318]
[1740840061874,7.13,140.31,140.28,7.1308]
[1740840062074,239.12,140.32,140.26,0.0516737]
[1740840062478,228.52,140.32,140.26,0.0516737]
[1740840063473,1.9885,140.37,140.26,0.0516737]
[1740840063668,7.1273,140.36,140.33,7.1283]
[1740840064274,228.28,140.39,140.33,0.05203295]
[1740840065183,10.6,140.38,140.33,0.05203295]
[1740840065681,10.6,140.38,140.34,7.1281]
[1740840065883,10.6,140.38,140.33,0.05203295]
[1740840066780,228.28,140.39,140.33,0.05203295]
[1740840066977,10.6,140.38,140.33,0.05203295]
[1740840068281,228.28,140.39,140.33,0.05203295]
[1740840068488,10.6,140.37,140.33,0.05203295]
[1740840069400,7.128,140.35,140.33,0.05203295]
[1740840069591,228.28,140.39,140.33,0.05203295]
[1740840069791,7.1274,140.36,140.33,0.05203295]
[1740840070696,10.6,140.38,140.33,0.05203295]
[1740840071000,1.28577755,140.37,140.33,0.05203295]
[1740840071297,7.1282,140.34,140.33,0.05203295]
[1740840071507,14.372,140.38,140.27,1.8808]
[1740840071801,1.28597385,140.37,140.27,1.8808]
[1740840072103,1.2860656,140.36,140.27,1.8808]
[1740840072406,1.2860656,140.35,140.27,1.8808]
[1740840072702,0.04935282,140.33,140.3,0.04672187]
[1740840072901,7.1297,140.31,140.3,0.04672187]
[1740840073303,0.04935282,140.33,140.3,0.04672187]
[1740840073503,7.1295,140.32,140.3,0.04672187]
[1740840073700,0.04935282,140.33,140.3,0.04672187]
[1740840074503,7.1297,140.31,140.3,0.04672187]
[1740840076708,10.64935282,140.33,140.3,0.04672187]
[1740840077310,7.1297,140.31,140.3,0.04672187]
[1740840077996,10.64935282,140.33,140.3,0.04672187]
[1740840078604,0.04935282,140.33,140.3,0.04672187]
[1740840079206,0.04935282,140.33,140.32,7.1292]
[1740840079506,0.04935282,140.33,140.31,3.7402]
[1740840079703,0.04935282,140.33,140.3,0.04672187]
[1740840080210,7.17835282,140.33,140.3,0.04672187]
[1740840080710,0.04935282,140.33,140.3,0.04672187]
[1740840080910,7.17835282,140.33,140.3,0.04672187]
[1740840081411,0.04935282,140.33,140.3,0.04672187]
[1740840082113,7.1295,140.32,140.3,0.04672187]
[1740840082516,0.04935282,140.33,140.3,0.04672187]
[1740840082811,7.1292,140.32,140.3,0.04672187]
[1740840083200,0.04935282,140.33,140.3,0.04672187]
[1740840084215,1.33536838,140.33,140.26,7.1321]
[1740840084405,7.131,140.29,140.21,3.7843]
[1740840084809,7.131,140.29,140.25,7.1325]
[1740840085313,0.05048062,140.28,140.26,0.04642778]
[1740840085502,0.05048062,140.28,140.26,7.17842778]
[1740840085705,0.05048062,140.28,140.26,0.04642778]
[1740840086507,0.05048062,140.28,140.27,7.1318]
[1740840089802,0.05048062,140.28,140.26,0.04642778]
[1740840090015,0.05048062,140.28,140.26,7.17852778]
[1740840094818,0.05048062,140.28,140.26,0.04642778]
[1740840095019,0.05048062,140.28,140.27,7.1318]
[1740840095220,0.05048062,140.28,140.26,0.04642778]
[1740840095419,0.05048062,140.28,140.26,7.17842778]
[1740840095818,7.18178062,140.28,140.26,7.17842778]
[1740840103124,0.05048062,140.28,140.26,7.17842778]
[1740840104029,7.18198062,140.28,140.26,7.17842778]
[1740840105629,0.05048062,140.28,140.26,7.17842778]
[1740840106724,0.05048062,140.28,140.26,0.04642778]
[1740840107529,7.18178062,140.28,140.26,7.17842778]
[1740840109031,0.05048062,140.28,140.26,7.17842778]
[1740840110531,0.05048062,140.28,140.26,0.04642778]
[1740840110827,0.05048062,140.28,140.27,7.1318]
[1740840111020,228.24,140.33,140.26,0.04642778]
[1740840111224,228.24,140.33,140.31,7.1294]
[1740840111833,228.24,140.33,140.32,7.1292]
[1740840112030,10.6,140.37,140.25,10.6]
[1740840112334,0.0482742,140.34,140.31,0.04948903]
[1740840112533,7.1287,140.33,140.31,0.04948903]
[1740840112730,0.0482742,140.34,140.31,0.04948903]
[1740840113920,0.0482742,140.34,140.32,7.1292]
[1740840114325,0.0482742,140.34,140.31,0.04948903]
[1740840114527,0.0482742,140.34,140.33,7.1287]
[1740840118639,228.26,140.4,140.34,7.128]
[1740840118838,228.26,140.4,140.32,170.24860667]
[1740840119040,235.3853,140.4,140.33,1.8622]
[1740840119234,228.26,140.4,140.33,1.8622]
[1740840119430,7.1267,140.37,140.33,1.8622]
[1740840119636,10.6,140.41,140.33,1.8622]
[1740840119941,10.6,140.41,140.34,7.17463022]
[1740840120143,7.1265,140.38,140.34,7.17463022]
[1740840120840,10.6,140.41,140.34,0.04653022]
[1740840121341,7.1275,140.36,140.34,0.04653022]
[1740840121541,10.6,140.41,140.34,0.04653022]
[1740840121742,7.1277,140.35,140.34,0.04653022]
[1740840122931,17.7274,140.36,140.34,0.04653022]
[1740840123734,7.1277,140.35,140.34,0.04653022]
[1740840124734,10.6,140.36,140.34,0.04653022]
[1740840124935,228.16,140.39,140.34,0.04653022]
[1740840125135,3.8446,140.45,140.34,0.04653022]
[1740840125445,11.86533483,140.44,140.3,178.98930667]
[1740840125646,1.28533483,140.43,140.39,7.1254]
[1740840126448,17.7034,140.44,140.39,7.1254]
[1740840126745,228.16,140.46,140.38,0.04767454]
[1740840127146,228.16,140.46,140.43,7.1236]
[1740840127650,228.16,140.46,140.43,7.17064134]
[1740840128149,228.16,140.46,140.43,0.04704134]
[1740840128347,7.123,140.45,140.43,0.04704134]
[1740840128534,228.16,140.46,140.43,0.04704134]
[1740840129246,228.16,140.46,140.44,7.1228]
[1740840129441,118.90501036,140.51,140.43,0.04704134]
[1740840130043,527.84234284,140.52,140.43,168.45634801]
[1740840130247,134.19193859,140.63,140.44,249.56]
[1740840130443,11.06,140.82,140.65,7.1125]
[1740840130649,386.16377954,140.66,140.65,18.1925]
[1740840130845,386.16377954,140.66,140.65,21.7525]
[1740840131151,374.60057954,140.66,140.65,21.7525]
[1740840131353,363.74777954,140.66,140.65,24.10845523]
[1740840131545,321.50267954,140.66,140.65,27.66845523]
[1740840131744,304.93307954,140.66,140.65,27.66845523]
[1740840132149,257.35410565,140.66,140.65,27.66845523]
[1740840132455,201.07960565,140.66,140.65,27.66845523]
[1740840132754,2.59113643,143.25,140.65,118.71433054]
[1740840133053,222.065183,140.81,140.66,4.66508788]
[1740840133254,222.065183,140.81,140.65,115.15433054]
[1740840133553,222.065183,140.81,140.72,0.04654419]
[1740840133937,222.065183,140.81,140.65,115.15433054]
[1740840134142,222.065183,140.81,140.78,651.15886504]
[1740840134551,222.065183,140.81,140.79,5.91595523]
[1740840134859,222.065183,140.81,140.78,621.04710816]
[1740840135054,223.720283,140.81,140.78,621.04710816]
[1740840135252,7.1054,140.79,140.78,621.04710816]
[1740840135446,223.720283,140.81,140.77,501.00147293]
[1740840135645,223.720283,140.81,140.77,467.29367293]
[1740840136045,7.1059,140.78,140.77,467.29367293]
[1740840136247,18.2459,140.78,140.77,467.29367293]
[1740840136547,21.8059,140.78,140.77,444.66717293]
[1740840136748,21.8059,140.78,140.77,423.07867293]
[1740840136956,21.8059,140.78,140.77,384.48897293]
[1740840137348,14.7,140.78,140.62,3.8519]
[1740840137552,7.1086,140.73,140.62,10.9519]
[1740840137751,11.14,140.72,140.62,10.9519]
[1740840137955,227.8,140.71,140.63,23.74318325]
[1740840138353,227.8,140.71,140.63,30.84318325]
[1740840138558,0.04763879,140.68,140.66,0.05081208]
[1740840139048,0.04763879,140.68,140.66,7.15081208]
[1740840139242,0.04763879,140.68,140.66,0.05081208]
[1740840139448,0.04763879,140.68,140.67,10.55252589]
[1740840139959,227.8,140.71,140.67,417.8744559]
[1740840140153,227.8,140.71,140.67,10.55252589]
[1740840140957,234.9095,140.71,140.66,0.05081208]
[1740840141160,0.05082672,140.7,140.66,0.05081208]
[1740840142459,7.1105,140.69,140.66,0.05081208]
[1740840142757,0.05082672,140.7,140.67,10.45034301]
[1740840142961,7.111,140.68,140.67,10.45034301]
[1740840143150,0.05082672,140.7,140.66,0.05081208]
[1740840143151,3.61082672,140.7,140.66,0.05081208]
[1740840143458,11.08,140.69,140.66,0.05081208]
[1740840143957,7.1115,140.67,140.66,1.208e-05]
[1740840144458,10.6715,140.67,140.66,1.208e-05]
[1740840146361,3.56,140.67,140.48,5.6777]
[1740840146553,1.42186833,140.66,140.48,12.77771208]
[1740840146958,7.1171,140.56,140.5,7.1199]
[1740840147159,234.8371,140.56,140.5,7.1199]
[1740840147464,0.04843147,140.54,140.52,0.04719612]
[1740840147846,227.72,140.56,140.52,0.04719612]
[1740840148052,227.72,140.56,140.53,7.1182]
[1740840148452,227.72,140.56,140.53,7.10001208]
[1740840148955,227.77169422,140.56,140.53,7.10001208]
[1740840149549,227.77169422,140.56,140.52,0.04719612]
[1740840151062,227.77169422,140.56,140.54,7.1177]
[1740840151249,227.77169422,140.56,140.52,7.1472082]
[1740840151866,11.1,140.55,140.52,0.04719612]
[1740840152461,7.1186,140.53,140.52,0.04719612]
[1740840156359,7.1182,140.54,140.52,0.04719612]
[1740840156665,11.1,140.55,140.52,0.04719612]
[1740840158161,7.1186,140.53,140.52,0.04719612]
[1740840158362,7.1186,140.53,140.52,9.612e-05]
[1740840158564,7.1212,140.48,140.45,9.022]
[1740840158760,7.1212,140.48,140.45,8.99961208]
[1740840158966,11.06,140.5,140.45,7.10001208]
[1740840159163,7.1219,140.47,140.45,7.10001208]
[1740840159766,7.1700497,140.47,140.45,7.14779913]
[1740840160268,0.0481497,140.47,140.45,7.14779913]
[1740840161373,0.0481497,140.47,140.45,0.04778705]
[1740840162167,0.0481497,140.47,140.46,7.1221]
[1740840162868,11.06,140.5,140.45,0.04778705]
[1740840163064,11.06,140.5,140.48,7.1207]
[1740840163371,11.06,140.5,140.45,7.14779913]
[1740840163569,18.1804,140.5,140.47,7.1213]
[1740840163769,18.1804,140.5,140.45,7.14779913]
[1740840163959,11.06,140.5,140.45,7.14779913]
[1740840164168,0.05074486,140.49,140.45,7.14779913]
[1740840164563,7.1214,140.48,140.45,7.14779913]
[1740840165072,7.17164486,140.49,140.45,14.27039913]
[1740840165568,7.1219,140.47,140.45,7.14779913]
[1740840165772,2.62662773,140.5,140.46,152.98676565]
[1740840165959,2.62662773,140.5,140.46,305.9735313]
[1740840166164,11.02,140.49,140.46,305.9735313]
[1740840166363,7.1219,140.47,140.46,305.9735313]
[1740840166974,7.1219,140.47,140.46,27.33299864]
[1740840167168,7.1221,140.46,140.45,177.96142946]
[1740840167364,235.0021,140.46,140.45,129.55042946]
[1740840167585,238.5621,140.46,140.45,129.55042946]
[1740840167777,238.5621,140.46,140.45,22.55867967]
[1740840168081,238.5621,140.46,140.45,6.41347967]
[1740840168272,227.88,140.46,140.44,216.30436612]
[1740840168462,7.1226,140.45,140.44,216.30436612]
[1740840172380,235.05253792,140.46,140.44,216.30436612]
[1740840172568,227.93023792,140.46,140.44,216.30436612]
[1740840172773,11.0,140.45,140.44,187.08502817]
[1740840172981,238.93023792,140.46,140.44,187.08502817]
[1740840175482,238.93023792,140.46,140.44,194.20812817]
[1740840175678,227.93023792,140.46,140.44,187.08502817]
[1740840175873,218.89633792,140.46,140.45,7.1226]
[1740840176271,218.89633792,140.46,140.45,14.22261208]
[1740840177389,218.89633792,140.46,140.45,7.10001208]
[1740840178981,218.89633792,140.46,140.44,187.08502817]
[1740840179286,218.89633792,140.46,140.44,194.18504025]
[1740840180885,226.01853792,140.46,140.44,194.18504025]
[1740840181086,218.89633792,140.46,140.44,194.18504025]
[1740840181886,218.89633792,140.46,140.44,187.08502817]
[1740840182186,7.1226,140.45,140.44,187.08502817]
[1740840189092,156.64349598,140.45,140.44,187.08502817]
[1740840192290,149.52089598,140.45,140.44,187.08502817]
[1740840193088,156.64349598,140.45,140.44,187.08502817]
[1740840194388,149.52089598,140.45,140.44,187.08502817]
[1740840195192,18.86446915,140.45,140.44,194.20812817]
[1740840195393,12.84126915,140.45,140.44,194.20812817]
[1740840195698,6.81806915,140.45,140.44,200.19087836]
[1740840196801,6.81806915,140.45,140.44,193.06777836]
[1740840197485,6.81806915,140.45,140.44,200.16779044]
[1740840197900,218.89633792,140.46,140.44,194.18504025]
[1740840198401,7.1226,140.45,140.44,194.18504025]
[1740840198792,7.1226,140.45,140.44,187.08502817]
[1740840200689,7.1226,140.45,140.44,175.95842817]
[1740840200889,7.1226,140.45,140.44,129.64262817]
[1740840201091,7.1226,140.45,140.44,116.98792817]
[1740840202307,222.75223792,140.46,140.44,116.98792817]
[1740840203706,26.2761484,140.45,140.44,116.98792817]
[1740840203909,19.1535484,140.45,140.44,116.98792817]
[1740840204804,19.1535484,140.45,140.44,124.11102817]
[1740840206005,218.89633792,140.46,140.44,124.11102817]
[1740840206207,218.89633792,140.46,140.44,116.98792817]
[1740840206607,218.89633792,140.46,140.44,124.11082817]
[1740840207311,218.89633792,140.46,140.45,7.1226]
[1740840207812,218.89633792,140.46,140.44,116.98792817]
[1740840208312,218.89633792,140.46,140.44,124.11072817]
[1740840209811,218.89633792,140.46,140.44,116.98792817]
[1740840210411,218.89633792,140.46,140.44,124.11072817]
[1740840210705,218.89633792,140.46,140.44,116.98792817]
[1740840211203,218.89633792,140.46,140.45,7.1226]
[1740840211708,218.89633792,140.46,140.44,116.98792817]
[1740840211907,218.89633792,140.46,140.44,124.11092817]
[1740840212112,218.89633792,140.46,140.44,116.98792817]
[1740840213614,26.21706761,140.45,140.44,116.98792817]
[1740840215021,19.09446761,140.45,140.44,116.98792817]
[1740840216417,26.21706761,140.45,140.44,116.98792817]
[1740840219421,218.89633792,140.46,140.44,116.98792817]
[1740840219919,218.89633792,140.46,140.44,124.08794025]
[1740840220415,218.89633792,140.46,140.45,7.1226]
[1740840220610,218.89633792,140.46,140.45,14.22261208]
[1740840220808,218.89633792,140.46,140.45,20.18617533]
[1740840222710,226.01843792,140.46,140.45,5.96356325]
[1740840223326,7.1226,140.45,140.44,116.98792817]
[1740840223628,17.9426,140.45,140.44,116.98792817]
[1740840227309,17.9426,140.45,140.44,94.53322817]
[1740840227521,17.9426,140.45,140.44,72.61562817]
[1740840228715,17.9426,140.45,140.44,42.85712817]
[1740840228915,10.82,140.45,140.43,238.16238225]
[1740840229115,7.1231,140.44,140.43,227.02748225]
[1740840229310,7.1231,140.44,140.43,191.69928225]
[1740840230428,10.6831,140.44,140.43,191.69928225]
[1740840230816,33.54719569,140.44,140.43,169.36068225]
[1740840231015,22.86409569,140.44,140.38,389.105097]
[1740840231222,7.1245,140.42,140.38,389.105097]
[1740840231824,22.86409569,140.44,140.38,389.105097]
[1740840232025,7.1245,140.42,140.38,389.105097]
[1740840232232,7.1245,140.42,140.4,0.05326848]
[1740840234023,69.96758732,140.41,140.38,389.105097]
[1740840234230,10.74,140.4,140.38,389.105097]
[1740840235232,10.74,140.4,140.38,389.15445791]
[1740840235429,80.70758732,140.4,140.38,389.15445791]
[1740840237132,327.54501326,140.4,140.38,389.15445791]
[1740840238025,316.80501326,140.4,140.38,389.15445791]
[1740840238417,69.96758732,140.4,140.38,391.01495791]
[1740840238621,69.96758732,140.4,140.38,398.14085791]
[1740840239933,69.96758732,140.4,140.38,391.01495791]
[1740840240233,69.96758732,140.4,140.39,298.95452275]
[1740840240533,63.94438732,140.4,140.39,298.95452275]
[1740840240732,60.93278732,140.4,140.39,298.95452275]
[1740840240929,54.90958732,140.4,140.39,298.95452275]
[1740840241128,51.90348732,140.4,140.39,298.95452275]
[1740840242432,137.91137515,140.4,140.39,298.95452275]
[1740840242618,137.91137515,140.4,140.39,291.82882275]
[1740840242826,137.91137515,140.4,140.39,298.92883483]
[1740840243835,72.0158321,140.4,140.39,298.92883483]
[1740840244627,318.76484175,140.4,140.39,298.92883483]
[1740840245936,318.76484175,140.4,140.39,291.82882275]
[1740840246329,325.89004175,140.4,140.39,291.82882275]
[1740840246835,79.1410321,140.4,140.39,291.82882275]
[1740840247235,121.14792733,140.4,140.39,291.82882275]
[1740840248531,417.4811239,140.4,140.39,291.82882275]
[1740840250342,410.3559239,140.4,140.39,291.82882275]
[1740840250934,390.84871084,140.4,140.39,291.82882275]
[1740840253245,390.84871084,140.4,140.39,298.92883483]
[1740840253545,52.50861904,140.4,140.39,298.92883483]
[1740840258941,59.63381904,140.4,140.39,291.82882275]
[1740840260348,52.50861904,140.4,140.39,291.82882275]
[1740840261254,59.63381904,140.4,140.39,291.82882275]
[1740840262235,52.50861904,140.4,140.39,291.82882275]
[1740840263137,10.72,140.41,140.39,291.82882275]
[1740840265352,17.8448,140.41,140.39,298.92883483]
[1740840266549,7.1252,140.4,140.39,298.92883483]
[1740840266753,7.1252,140.4,140.39,291.82882275]
[1740840268753,17.7252,140.4,140.39,291.82882275]
[1740840271253,10.6,140.4,140.39,291.82882275]
[1740840273351,17.7252,140.4,140.39,291.82882275]
[1740840275446,17.7252,140.4,140.39,287.98872275]
[1740840275651,17.7252,140.4,140.39,272.62852275]
[1740840275856,17.7252,140.4,140.39,266.60572275]
[1740840281173,7.1252,140.4,140.39,266.60572275]
[1740840281465,10.65345155,140.43,140.39,266.60572275]
[1740840281671,10.65345155,140.43,140.39,268.94682275]
[1740840282361,10.6,140.42,140.39,268.94682275]
[1740840282769,10.6,140.42,140.4,7.1249]
[1740840282974,2.9209,140.42,140.4,7.1249]
[1740840284770,2.9209,140.42,140.39,268.94682275]
[1740840284968,2.9209,140.42,140.41,7.1247]
[1740840285277,2.9209,140.42,140.39,268.94682275]
[1740840285483,2.9209,140.42,140.4,7.1249]
[1740840289179,2.9209,140.42,140.39,276.07222275]
[1740840294175,0.05345155,140.43,140.39,268.94682275]
[1740840294382,228.12,140.44,140.39,268.94682275]
[1740840295570,0.05048185,140.43,140.39,268.94682275]
[1740840295777,228.12,140.44,140.39,268.94682275]
[1740840295968,228.12,140.44,140.39,276.04683483]
[1740840296390,228.12,140.44,140.41,7.1244]
[1740840296684,228.12,140.44,140.41,14.22441208]
[1740840296987,228.16813241,140.44,140.41,14.27499815]
[1740840297482,228.16813241,140.44,140.41,0.05058607]
[1740840297987,228.16813241,140.44,140.43,7.1236]
[1740840298287,208.48572033,140.44,140.43,7.1236]
[1740840298480,0.04813241,140.44,140.43,7.1236]
[1740840298676,10.6,140.48,140.41,0.05058607]
[1740840298876,7.1224,140.46,140.41,0.05058607]
[1740840299082,10.6,140.48,140.41,0.05058607]
[1740840299294,10.6,140.48,140.44,7.1228]
[1740840299471,10.6,140.48,140.39,268.94682275]
[1740840299671,10.6,140.48,140.4,4.67608346]
[1740840299879,10.6,140.48,140.42,0.05036751]
[1740840300080,10.6,140.49,140.42,0.05036751]
[1740840300277,10.6,140.49,140.39,279.54682275]
[1740840300476,10.6,140.49,140.44,0.04962093]
[1740840301179,7.1214,140.48,140.45,7.1224]
[1740840301376,228.08,140.51,140.44,0.04962093]
[1740840301582,10.6,140.5,140.44,0.04962093]
[1740840301884,7.1224,140.46,140.44,0.04962093]
[1740840302087,10.6,140.5,140.44,0.04962093]
[1740840303392,7.1219,140.47,140.44,0.04962093]
[1740840303688,10.6,140.5,140.44,0.04962093]
[1740840304299,7.1209,140.49,140.44,0.04962093]
[1740840304592,7.1209,140.49,140.44,7.17262093]
[1740840305092,7.1212,140.48,140.44,7.17262093]
[1740840305797,7.1212,140.48,140.44,0.04962093]
[1740840306094,7.1224,140.46,140.44,0.04962093]
[1740840306295,10.6,140.45,140.44,0.04962093]
[1740840309800,10.6,140.48,140.44,0.04962093]
[1740840310701,10.6,140.48,140.44,7.17252093]
[1740840312901,17.7213,140.48,140.44,7.17252093]
[1740840314002,10.6,140.48,140.45,7.1225]
[1740840314597,10.6,140.48,140.45,7.1222]
[1740840314793,10.6,140.48,140.45,9.831]
[1740840315102,10.6,140.48,140.45,2.7088]
[1740840315295,10.6,140.48,140.46,7.122]
[1740840315490,235.1998,140.51,140.45,2.7088]
[1740840315701,228.08,140.51,140.45,5.5363]
[1740840316397,228.08,140.51,140.5,7.1201]
[1740840319711,228.08,140.51,140.49,0.05401537]
[1740840320400,7.1201,140.5,140.49,0.05401537]
[1740840320904,228.08,140.51,140.49,0.05401537]
[1740840321106,7.1201,140.5,140.49,0.05401537]
[1740840321493,228.08,140.51,140.4,10.6]
[1740840321700,228.08,140.51,140.41,5.8394]
[1740840321899,2.8779,140.5,140.41,5.8394]
[1740840322103,10.6,140.49,140.41,5.8394]
[1740840322596,10.6,140.49,140.44,7.1228]
[1740840322797,0.05130566,140.46,140.44,0.05419755]
[1740840323099,0.05130566,140.46,140.44,7.17689755]
[1740840323406,0.05130566,140.46,140.44,0.05419755]
[1740840323593,0.05130566,140.46,140.45,7.1226]
[1740840324604,0.05130566,140.46,140.44,7.17719755]
[1740840324910,0.05130566,140.46,140.44,0.05419755]
[1740840325210,0.05130566,140.46,140.44,7.17709755]
[1740840325709,0.05130566,140.46,140.44,0.05419755]
[1740840328110,0.05130566,140.46,140.41,7.1244]
[1740840328307,0.05130566,140.46,140.39,435.01502942]
[1740840328513,0.05130566,140.46,140.39,266.60572275]
[1740840328711,0.05130566,140.46,140.45,7.1226]
[1740840331310,2.7363,140.56,140.5,7.1201]
[1740840331618,230.9608,140.58,140.46,7.59193401]
[1740840331811,227.98,140.58,140.47,4.65916792]
[1740840332112,227.98,140.58,140.46,3.0347]
[1740840332308,227.98,140.58,140.51,0.04851383]
[1740840332814,7.1176,140.55,140.51,0.04851383]
[1740840333005,10.6,140.54,140.51,0.04851383]
[1740840333603,10.6,140.54,140.46,2.9311]
[1740840333810,2.9808,140.53,140.45,171.39650667]
[1740840334608,2.9808,140.53,140.46,7.122]
[1740840334812,0.04782843,140.5,140.48,0.04816628]
[1740840335709,0.04782843,140.5,140.49,7.1206]
[1740840335915,10.6,140.54,140.48,3.60816628]
[1740840336111,2.8252,140.57,140.49,2.9644]
[1740840336312,227.98,140.58,140.49,2.9644]
[1740840336510,238.58,140.58,140.49,2.9644]
[1740840336815,238.58,140.58,140.54,7.118]
[1740840337016,0.04594368,140.57,140.55,0.05065471]
[1740840337818,7.1171,140.56,140.55,0.05065471]
[1740840339517,0.04594368,140.57,140.49,168.40930667]
[1740840339817,5.7024,140.56,140.45,2.9872]
[1740840340513,7.1186,140.53,140.45,2.9872]
[1740840340701,0.05429539,140.52,140.49,0.04523724]
[1740840341306,7.17339539,140.52,140.49,0.04523724]
[1740840341815,0.05429539,140.52,140.49,0.04523724]
[1740840342921,7.17339539,140.52,140.49,0.04523724]
[1740840344520,0.05429539,140.52,140.49,0.04523724]
[1740840345622,7.17339539,140.52,140.49,0.04523724]
[1740840345826,0.05429539,140.52,140.49,0.04523724]
[1740840346309,0.05429539,140.52,140.45,168.40930667]
[1740840347318,0.05429539,140.52,140.47,0.04639682]
[1740840348826,7.1207,140.49,140.47,0.04639682]
[1740840349123,10.6,140.48,140.47,0.04639682]
[1740840349523,17.7211,140.48,140.47,0.04639682]
[1740840349718,17.7211,140.48,140.45,168.40930667]
[1740840349912,17.7211,140.48,140.43,7.1234]
[1740840350630,7.1217,140.47,140.42,7.1239]
[1740840350819,10.6,140.48,140.44,0.04907162]
[1740840351017,0.04632782,140.46,140.44,0.04907162]
[1740840352321,0.04632782,140.46,140.45,7.1226]
[1740840359827,238.54,140.62,140.45,187.23502141]
[1740840360033,82.12395156,140.61,140.46,8.74031474]
[1740840360232,82.12395156,140.61,140.56,7.117]
[1740840360831,0.04892526,140.6,140.57,0.05119437]
[1740840362934,0.04892526,140.6,140.58,7.1157]
[1740840363130,0.04892526,140.6,140.57,0.05119437]
[1740840363525,0.04892526,140.6,140.59,7.1155]
[1740840364227,79.33905156,140.62,140.61,7.1145]
[1740840364736,10.6,140.66,140.57,168.40930667]
[1740840364936,10.6,140.66,140.62,7.1136]
[1740840365124,10.6,140.66,140.57,168.40930667]
[1740840365325,10.6,140.66,140.64,7.1126]
[1740840365631,10.6465867,140.66,140.57,168.40930667]
[1740840365829,310.68485156,140.69,140.64,0.0505635]
[1740840366025,317.77905156,140.69,140.68,7.111]
[1740840367733,307.19905156,140.69,140.68,7.111]